[Event "MČR družstev mladších žáků 2024"]
[Site "Harrachov, Czech Republic"]
[Date "2024.06.15"]
[Round "7.10"]
[White "Kozusnik Jan"]
[Black "Gao Tianle"]
[Result "1-0"]
[TimeControl "25+10"]
[WhiteFideId "23731796"]
[BlackFideId "23739924"]
[WhiteElo "1345"]
[BlackElo "1120"]

1. e4 {[%clk 00:25:18]} {[%emt 00:00:01]} e6 {[%clk 00:25:19]} {[%emt
00:00:02]} 2. d4 {[%clk 00:25:26]} {[%emt 00:00:01]} d5 {[%clk 00:25:28]} 3.
Nc3 {[%emt 00:00:06]} c5 {[%clk 00:25:33]} {[%emt 00:00:01]} 4. Nf3 {[%clk
00:25:00]} {[%emt 00:00:44]} Nc6 {[%clk 00:25:37]} {[%emt 00:00:06]} 5. Bb5
{[%clk 00:24:42]} {[%emt 00:00:27]} Qb6 {[%clk 00:25:44]} {[%emt 00:00:04]} 6.
exd5 {[%clk 00:23:40]} {[%emt 00:01:11]} exd5 {[%clk 00:25:45]} {[%emt
00:00:09]} 7. O-O {[%clk 00:22:03]} {[%emt 00:01:48]} Nf6 {[%clk 00:25:44]}
{[%emt 00:00:11]} 8. Be3 {[%clk 00:20:51]} {[%emt 00:01:18]} a6 {[%clk
00:25:49]} {[%emt 00:00:08]} 9. dxc5 {[%clk 00:19:28]} {[%emt 00:01:34]} Bxc5
{[%clk 00:25:51]} {[%emt 00:00:08]} 10. Bxc5 {[%clk 00:18:56]} {[%emt
00:00:42]} Qxc5 {[%clk 00:25:51]} {[%emt 00:00:09]} 11. Re1+ {[%clk 00:19:04]}
{[%emt 00:00:03]} Be6 {[%clk 00:25:49]} {[%emt 00:00:12]} 12. Bf1 {[%clk
00:17:36]} {[%emt 00:01:38]} O-O {[%clk 00:25:51]} {[%emt 00:00:07]} 13. Qd2
{[%clk 00:14:54]} {[%emt 00:02:52]} Bg4 {[%clk 00:25:32]} {[%emt 00:00:30]} 14.
Ne5 {[%clk 00:13:36]} {[%emt 00:01:28]} Nxe5 {[%clk 00:25:07]} {[%emt
00:00:35]} 15. Rxe5 {[%clk 00:13:34]} {[%emt 00:00:12]} Rad8 {[%clk 00:24:50]}
{[%emt 00:00:26]} 16. Rae1 {[%clk 00:11:19]} {[%emt 00:02:26]} Qd6 {[%clk
00:23:09]} {[%emt 00:01:50]} 17. Qd4 {[%clk 00:10:47]} {[%emt 00:00:42]} Qd7
{[%clk 00:22:04]} {[%emt 00:01:17]} 18. Be2 {[%clk 00:08:48]} {[%emt 00:02:08]}
Be6 {[%clk 00:21:47]} {[%emt 00:00:27]} 19. Bf3 {[%clk 00:07:15]} {[%emt
00:01:42]} Qc6 {[%clk 00:21:15]} {[%emt 00:00:41]} 20. Rd1 {[%clk 00:06:02]}
{[%emt 00:01:25]} Qc4 {[%clk 00:20:46]} {[%emt 00:00:38]} 21. Qxc4 {[%clk
00:04:25]} {[%emt 00:01:49]} dxc4 {[%clk 00:20:52]} {[%emt 00:00:03]} 22. Bxb7
{[%clk 00:04:14]} {[%emt 00:00:22]} Rb8 {[%clk 00:20:32]} {[%emt 00:00:30]} 23.
Bxa6 {[%clk 00:02:56]} {[%emt 00:01:29]} Rxb2 {[%clk 00:20:39]} {[%emt
00:00:02]} 24. Re2 {[%clk 00:02:22]} {[%emt 00:00:44]} h6 {[%clk 00:19:53]}
{[%emt 00:00:56]} 25. h3 {[%clk 00:02:01]} {[%emt 00:00:31]} Ra8 {[%clk
00:19:42]} {[%emt 00:00:20]} 26. Bb5 {[%clk 00:01:44]} {[%emt 00:00:24]} Rb8
{[%clk 00:19:29]} {[%emt 00:00:24]} 27. a4 {[%clk 00:01:31]} {[%emt 00:00:26]}
Bf5 {[%clk 00:19:05]} {[%emt 00:00:30]} 28. Kh2 {[%clk 00:00:26]} {[%emt
00:01:18]} Bxc2 {[%clk 00:19:02]} {[%emt 00:00:12]} 29. Rc1 {[%clk 00:00:21]}
{[%emt 00:00:16]} R2xb5 {[%clk 00:17:28]} {[%emt 00:01:44]} 30. Nxb5 {[%clk
00:00:14]} {[%emt 00:00:17]} Bxa4 {[%clk 00:17:34]} {[%emt 00:00:04]} 31. Nd4
{[%clk 00:00:13]} {[%emt 00:00:11]} Bb3 {[%clk 00:17:38]} {[%emt 00:00:05]} 32.
Nxb3 {[%clk 00:00:21]} {[%emt 00:00:03]} cxb3 {[%clk 00:17:46]} {[%emt
00:00:02]} 33. Rb2 {[%clk 00:00:18]} {[%emt 00:00:13]} Ne4 {[%clk 00:17:46]}
{[%emt 00:00:10]} 34. f3 {[%clk 00:00:19]} {[%emt 00:00:10]} Nd2 {[%clk
00:17:53]} {[%emt 00:00:02]} 35. Rxd2 {[%clk 00:00:23]} {[%emt 00:00:06]} b2
{[%clk 00:18:01]} {[%emt 00:00:02]} 36. Rb1 {[%clk 00:00:32]} Kh7 {[%clk
00:18:04]} {[%emt 00:00:08]} 37. Rdxb2 {[%clk 00:00:41]} {[%emt 00:00:01]} Rxb2
{[%clk 00:18:09]} {[%emt 00:00:05]} 38. Rxb2 {[%clk 00:00:50]} {[%emt
00:00:01]} f6 {[%clk 00:18:18]} {[%emt 00:00:01]} 39. Kg3 {[%clk 00:00:58]}
{[%emt 00:00:02]} Kg6 {[%clk 00:18:27]} {[%emt 00:00:01]} 40. Kf4 {[%clk
00:01:06]} {[%emt 00:00:02]} h5 {[%clk 00:18:35]} {[%emt 00:00:02]} 41. g4
{[%clk 00:01:16]} Kh6 {[%clk 00:18:41]} {[%emt 00:00:04]} 42. h4 {[%clk
00:01:20]} {[%emt 00:00:06]} g5+ {[%clk 00:18:48]} {[%emt 00:00:02]} 43. Kg3
{[%clk 00:01:24]} {[%emt 00:00:07]} gxh4+ {[%clk 00:18:54]} {[%emt 00:00:04]}
44. Kxh4 {[%clk 00:01:32]} {[%emt 00:00:02]} hxg4 {[%clk 00:19:02]} {[%emt
00:00:02]} 45. fxg4 {[%clk 00:01:40]} {[%emt 00:00:02]} Kg6 {[%clk 00:19:11]}
{[%emt 00:00:01]} 46. Rf2 {[%clk 00:01:47]} {[%emt 00:00:03]} Kg7 {[%clk
00:19:19]} {[%emt 00:00:03]} 47. Kh5 {[%clk 00:01:55]} {[%emt 00:00:03]} Kf7
{[%clk 00:19:27]} {[%emt 00:00:01]} 48. Rf5 {[%clk 00:02:03]} {[%emt 00:00:01]}
Kg7 {[%clk 00:19:36]} 49. g5 {[%clk 00:02:12]} {[%emt 00:00:02]} fxg5 {[%clk
00:19:44]} {[%emt 00:00:01]} 50. Kxg5 {[%clk 00:02:21]} {[%emt 00:00:01]} Kh7
{[%clk 00:19:52]} {[%emt 00:00:02]} 51. Rf7+ {[%clk 00:02:18]} {[%emt
00:00:13]} Kh8 {[%clk 00:19:58]} {[%emt 00:00:03]} 52. Ra7 {[%clk 00:02:26]}
{[%emt 00:00:03]} Kg8 {[%clk 00:20:06]} {[%emt 00:00:02]} 53. Kf6 {[%clk
00:02:36]} Kh8 {[%clk 00:20:14]} {[%emt 00:00:03]} 54. Kg6 {[%clk 00:02:45]}
{[%emt 00:00:01]} Kg8 {[%clk 00:20:23]} 55. Ra8# {[%clk 00:02:54]} 1-0



[ePGN "0.1;DGT LiveChess/2.2.6"]

[Event "MČR družstev mladších žáků 2024"]
[Site "Harrachov, Czech Republic"]
[Date "2024.06.15"]
[Round "7.13"]
[White "Vanek Martin"]
[Black "Honcharov Makar"]
[Result "0-1"]
[TimeControl "25+10"]
[WhiteFideId "23769238"]
[BlackFideId "23746203"]
[WhiteElo "1580"]
[BlackElo "1806"]

1. d4 {[%clk 00:25:19]} Nf6 {[%clk 00:25:15]} {[%emt 00:00:06]} 2. c4 {[%clk
00:25:25]} {[%emt 00:00:03]} g6 {[%clk 00:25:23]} {[%emt 00:00:01]} 3. Nc3
{[%clk 00:25:33]} {[%emt 00:00:02]} Bg7 {[%clk 00:25:31]} {[%emt 00:00:02]} 4.
e4 {[%clk 00:25:42]} {[%emt 00:00:02]} d6 {[%clk 00:25:40]} {[%emt 00:00:01]} 5.
h3 {[%clk 00:25:50]} {[%emt 00:00:03]} c5 {[%clk 00:25:38]} {[%emt 00:00:12]} 6.
d5 {[%clk 00:25:54]} {[%emt 00:00:05]} O-O {[%clk 00:25:28]} {[%emt 00:00:20]}
7. Be3 {[%clk 00:25:58]} {[%emt 00:00:06]} Qa5 {[%clk 00:25:21]} {[%emt
00:00:17]} 8. Qd2 {[%clk 00:25:33]} {[%emt 00:00:35]} a6 {[%clk 00:24:58]}
{[%emt 00:00:33]} 9. a4 {[%clk 00:25:06]} {[%emt 00:00:37]} b5 {[%clk
00:23:35]} {[%emt 00:01:34]} 10. cxb5 {[%clk 00:23:45]} {[%emt 00:01:31]} axb5
{[%clk 00:23:43]} {[%emt 00:00:02]} 11. Bxb5 {[%clk 00:23:06]} {[%emt
00:00:48]} Qb4 {[%clk 00:23:47]} {[%emt 00:00:06]} 12. f3 {[%clk 00:21:27]}
{[%emt 00:01:50]} Ba6 {[%clk 00:23:14]} {[%emt 00:00:42]} 13. Bxa6 {[%clk
00:19:58]} {[%emt 00:01:39]} Nxa6 {[%clk 00:23:20]} {[%emt 00:00:05]} 14. Nge2
{[%clk 00:19:43]} {[%emt 00:00:25]} Rfb8 {[%clk 00:22:41]} {[%emt 00:00:49]} 15.
Nb5 {[%clk 00:18:28]} {[%emt 00:01:25]} Nd7 {[%clk 00:20:47]} {[%emt 00:02:05]}
16. Qxb4 {[%clk 00:17:06]} {[%emt 00:01:32]} Nxb4 {[%clk 00:20:52]} {[%emt
00:00:05]} 17. Rb1 {[%clk 00:14:59]} {[%emt 00:02:16]} Rxa4 {[%clk 00:20:28]}
{[%emt 00:00:35]} 18. Nec3 {[%clk 00:14:30]} {[%emt 00:00:39]} Ra5 {[%clk
00:20:27]} {[%emt 00:00:12]} 19. Na3 {[%clk 00:13:25]} {[%emt 00:01:14]} Bxc3+
{[%clk 00:19:34]} {[%emt 00:01:03]} 20. bxc3 {[%clk 00:13:28]} {[%emt
00:00:07]} Rxa3 {[%clk 00:19:43]} {[%emt 00:00:02]} 21. cxb4 {[%clk 00:13:32]}
{[%emt 00:00:06]} Rxe3+ {[%clk 00:19:51]} {[%emt 00:00:02]} 22. Kd2 {[%clk
00:13:34]} {[%emt 00:00:07]} Ra3 {[%clk 00:19:59]} {[%emt 00:00:03]} 23. b5
{[%clk 00:13:30]} {[%emt 00:00:13]} Nb6 {[%clk 00:20:00]} {[%emt 00:00:09]} 24.
Rhc1 {[%clk 00:13:15]} {[%emt 00:00:25]} Rba8 {[%clk 00:20:03]} {[%emt
00:00:08]} 25. Rc2 {[%clk 00:12:46]} {[%emt 00:00:39]} Ra2 {[%clk 00:19:50]}
{[%emt 00:00:22]} 26. Rcb2 {[%clk 00:12:17]} {[%emt 00:00:38]} Rxb2+ {[%clk
00:19:48]} {[%emt 00:00:13]} 27. Rxb2 {[%clk 00:12:24]} {[%emt 00:00:03]} Nc4+
{[%clk 00:19:57]} {[%emt 00:00:01]} 28. Kc3 {[%clk 00:11:53]} {[%emt 00:00:41]}
Nxb2 {[%clk 00:20:04]} {[%emt 00:00:03]} 29. Kxb2 {[%clk 00:12:02]} {[%emt
00:00:01]} Rb8 {[%clk 00:20:13]} 0-1



[ePGN "0.1;DGT LiveChess/2.2.6"]

[Event "MČR družstev mladších žáků 2024"]
[Site "Harrachov, Czech Republic"]
[Date "2024.06.15"]
[Round "7.14"]
[White "Tykalova Barbora"]
[Black "Bilek Filip"]
[Result "0-1"]
[TimeControl "25+10"]
[WhiteFideId "23750898"]
[BlackFideId "23763493"]
[WhiteElo "1284"]
[BlackElo "1249"]

1. e4 {[%clk 00:25:19]} c5 {[%clk 00:25:19]} {[%emt 00:00:01]} 2. Nf3 {[%clk
00:25:18]} {[%emt 00:00:10]} e6 {[%clk 00:25:27]} {[%emt 00:00:02]} 3. c4
{[%clk 00:25:14]} {[%emt 00:00:15]} Nc6 {[%clk 00:25:29]} {[%emt 00:00:07]} 4.
Nc3 {[%clk 00:25:18]} {[%emt 00:00:06]} Be7 {[%clk 00:25:32]} {[%emt 00:00:07]}
5. d4 {[%clk 00:24:49]} {[%emt 00:00:40]} cxd4 {[%clk 00:25:30]} {[%emt
00:00:11]} 6. Nxd4 {[%clk 00:24:51]} {[%emt 00:00:08]} Bc5 {[%clk 00:25:12]}
{[%emt 00:00:27]} 7. Nxc6 {[%clk 00:24:44]} {[%emt 00:00:18]} bxc6 {[%clk
00:25:16]} {[%emt 00:00:06]} 8. Bd3 {[%clk 00:24:37]} {[%emt 00:00:16]} Ne7
{[%clk 00:25:20]} {[%emt 00:00:05]} 9. O-O {[%clk 00:24:14]} {[%emt 00:00:35]}
O-O {[%clk 00:24:32]} {[%emt 00:00:57]} 10. Qh5 {[%clk 00:23:30]} {[%emt
00:00:49]} Bb6 {[%clk 00:24:10]} {[%emt 00:00:36]} 11. e5 {[%clk 00:22:50]}
{[%emt 00:00:51]} Ng6 {[%clk 00:23:49]} {[%emt 00:00:31]} 12. Bg5 {[%clk
00:22:25]} {[%emt 00:00:34]} Qe8 {[%clk 00:23:10]} {[%emt 00:00:49]} 13. Ne4
{[%clk 00:22:03]} {[%emt 00:00:33]} d5 {[%clk 00:21:41]} {[%emt 00:01:39]} 14.
Nf6+ {[%clk 00:20:52]} {[%emt 00:01:21]} gxf6 {[%clk 00:21:34]} {[%emt
00:00:16]} 15. exf6 {[%clk 00:20:59]} {[%emt 00:00:05]} Kh8 {[%clk 00:20:36]}
{[%emt 00:01:07]} 16. Bh6 {[%clk 00:20:20]} {[%emt 00:00:50]} Rg8 {[%clk
00:20:39]} {[%emt 00:00:06]} 17. Bg7+ {[%clk 00:19:38]} {[%emt 00:00:53]} Rxg7
{[%clk 00:20:42]} {[%emt 00:00:06]} 18. fxg7+ {[%clk 00:19:45]} {[%emt
00:00:04]} Kxg7 {[%clk 00:20:46]} {[%emt 00:00:06]} 19. cxd5 {[%clk 00:19:17]}
{[%emt 00:00:38]} cxd5 {[%clk 00:20:37]} {[%emt 00:00:19]} 20. Rac1 {[%clk
00:18:52]} {[%emt 00:00:36]} Bb7 {[%clk 00:20:35]} {[%emt 00:00:09]} 21. Qg4
{[%clk 00:16:54]} {[%emt 00:02:01]} Rc8 {[%clk 00:20:30]} {[%emt 00:00:24]} 22.
Rcd1 {[%clk 00:16:38]} {[%emt 00:00:21]} Qe7 {[%clk 00:19:57]} {[%emt
00:00:45]} 23. Kh1 {[%clk 00:15:49]} {[%emt 00:01:02]} Qh4 {[%clk 00:19:29]}
{[%emt 00:00:39]} 24. Qxh4 {[%clk 00:09:38]} {[%emt 00:06:21]} Nxh4 {[%clk
00:19:27]} {[%emt 00:00:11]} 25. f4 {[%clk 00:08:30]} {[%emt 00:01:18]} d4
{[%clk 00:19:08]} {[%emt 00:00:29]} 26. Rd2 {[%clk 00:08:38]} {[%emt 00:00:02]}
Rg8 {[%clk 00:18:44]} {[%emt 00:00:34]} 27. h3 {[%clk 00:05:46]} {[%emt
00:03:03]} Kh8 {[%clk 00:18:19]} {[%emt 00:00:34]} 28. Rff2 {[%clk 00:05:43]}
{[%emt 00:00:12]} Ba5 {[%clk 00:16:52]} {[%emt 00:01:38]} 29. Rc2 {[%clk
00:05:45]} {[%emt 00:00:08]} Bd5 {[%clk 00:15:43]} {[%emt 00:01:19]} 30. Bf1
{[%clk 00:04:31]} {[%emt 00:01:24]} Bb6 {[%clk 00:14:43]} {[%emt 00:01:10]} 31.
Bd3 {[%clk 00:04:10]} {[%emt 00:00:31]} Ba5 {[%clk 00:14:19]} {[%emt 00:00:29]}
32. Kh2 {[%clk 00:03:41]} {[%emt 00:00:44]} Be1 {[%clk 00:13:55]} {[%emt
00:00:34]} 33. Rfe2 {[%clk 00:03:49]} {[%emt 00:00:02]} Bg3+ {[%clk 00:13:45]}
{[%emt 00:00:16]} 34. Kh1 {[%clk 00:03:37]} {[%emt 00:00:25]} Bxf4 {[%clk
00:13:37]} {[%emt 00:00:19]} 35. Be4 {[%clk 00:03:24]} {[%emt 00:00:22]} Bxa2
{[%clk 00:12:55]} {[%emt 00:00:52]} 36. Rf2 {[%clk 00:02:45]} {[%emt 00:00:48]}
e5 {[%clk 00:12:48]} {[%emt 00:00:19]} 37. Rc7 {[%clk 00:02:11]} {[%emt
00:00:41]} a5 {[%clk 00:12:40]} {[%emt 00:00:20]} 38. Ra7 {[%clk 00:01:53]}
{[%emt 00:00:29]} f5 {[%clk 00:10:59]} {[%emt 00:01:52]} 39. Bc2 {[%clk
00:01:46]} {[%emt 00:00:11]} d3 {[%clk 00:10:40]} {[%emt 00:00:34]} 40. Rc7
{[%clk 00:00:56]} {[%emt 00:00:57]} dxc2 {[%clk 00:10:33]} {[%emt 00:00:19]} 41.
Rcxc2 {[%clk 00:01:04]} {[%emt 00:00:02]} Bd5 {[%clk 00:10:13]} {[%emt
00:00:27]} 42. Kg1 {[%clk 00:00:45]} {[%emt 00:00:32]} Be3 {[%clk 00:10:17]}
{[%emt 00:00:07]} 0-1



[ePGN "0.1;DGT LiveChess/2.2.6"]

[Event "MČR družstev mladších žáků 2024"]
[Site "Harrachov, Czech Republic"]
[Date "2024.06.15"]
[Round "7.15"]
[White "Najdkova Laura"]
[Black "Koutecky Vaclav"]
[Result "1-0"]
[TimeControl "25+10"]
[WhiteFideId "23751290"]
[BlackFideId "23752602"]
[WhiteElo "1337"]
[BlackElo "1194"]

1. e4 {[%clk 00:25:19]} e5 {[%clk 00:25:19]} {[%emt 00:00:01]} 2. Nf3 {[%clk
00:25:27]} {[%emt 00:00:02]} Nc6 {[%clk 00:25:28]} 3. Bb5 {[%clk 00:25:35]}
{[%emt 00:00:03]} Bc5 {[%clk 00:25:35]} {[%emt 00:00:03]} 4. O-O {[%clk
00:25:33]} {[%emt 00:00:12]} d6 {[%clk 00:25:43]} {[%emt 00:00:02]} 5. c3
{[%clk 00:25:40]} {[%emt 00:00:04]} Nf6 {[%clk 00:25:29]} {[%emt 00:00:24]} 6.
Re1 {[%clk 00:25:49]} {[%emt 00:00:01]} Bg4 {[%clk 00:25:26]} {[%emt 00:00:12]}
7. d4 {[%clk 00:24:36]} {[%emt 00:01:23]} Bxf3 {[%clk 00:25:27]} {[%emt
00:00:10]} 8. Bxc6+ {[%clk 00:23:56]} {[%emt 00:00:50]} bxc6 {[%clk 00:25:30]}
{[%emt 00:00:06]} 9. Qxf3 {[%clk 00:23:58]} {[%emt 00:00:08]} exd4 {[%clk
00:25:36]} {[%emt 00:00:04]} 10. cxd4 {[%clk 00:23:50]} {[%emt 00:00:18]} Bxd4
{[%clk 00:25:40]} {[%emt 00:00:06]} 11. Nc3 {[%clk 00:23:51]} {[%emt 00:00:10]}
O-O {[%clk 00:25:33]} {[%emt 00:00:17]} 12. Bg5 {[%clk 00:23:40]} {[%emt
00:00:20]} h6 {[%clk 00:25:33]} {[%emt 00:00:10]} 13. Bh4 {[%clk 00:23:41]}
{[%emt 00:00:09]} Rb8 {[%clk 00:24:52]} {[%emt 00:00:48]} 14. Rad1 {[%clk
00:22:53]} {[%emt 00:00:58]} Be5 {[%clk 00:24:38]} {[%emt 00:00:24]} 15. Re2
{[%clk 00:22:16]} {[%emt 00:00:48]} c5 {[%clk 00:24:23]} {[%emt 00:00:23]} 16.
Nd5 {[%clk 00:20:20]} {[%emt 00:02:10]} g5 {[%clk 00:23:46]} {[%emt 00:00:46]}
17. Nxf6+ {[%clk 00:19:33]} {[%emt 00:00:58]} Bxf6 {[%clk 00:23:26]} {[%emt
00:00:30]} 18. e5 {[%clk 00:16:19]} {[%emt 00:03:24]} Bg7 {[%clk 00:21:25]}
{[%emt 00:02:08]} 19. Bg3 {[%clk 00:16:09]} {[%emt 00:00:21]} Rb6 {[%clk
00:18:50]} {[%emt 00:02:45]} 20. exd6 {[%clk 00:14:25]} {[%emt 00:01:56]} cxd6
{[%clk 00:18:47]} {[%emt 00:00:12]} 21. Qd5 {[%clk 00:13:09]} {[%emt 00:01:24]}
Rxb2 {[%clk 00:17:12]} {[%emt 00:01:48]} 22. Rxb2 {[%clk 00:13:14]} {[%emt
00:00:05]} Bxb2 {[%clk 00:17:18]} {[%emt 00:00:03]} 23. Qxd6 {[%clk 00:09:30]}
{[%emt 00:03:55]} Qxd6 {[%clk 00:17:15]} {[%emt 00:00:14]} 24. Rxd6 {[%clk
00:09:27]} {[%emt 00:00:12]} Bd4 {[%clk 00:17:21]} {[%emt 00:00:02]} 25. Rxh6
{[%clk 00:09:10]} {[%emt 00:00:29]} Re8 {[%clk 00:17:20]} {[%emt 00:00:08]} 26.
h3 {[%clk 00:09:13]} {[%emt 00:00:09]} Re1+ {[%clk 00:17:16]} {[%emt 00:00:14]}
27. Kh2 {[%clk 00:09:22]} {[%emt 00:00:02]} Re6 {[%clk 00:17:24]} {[%emt
00:00:02]} 28. Rh5 {[%clk 00:07:54]} {[%emt 00:01:39]} Rg6 {[%clk 00:17:14]}
{[%emt 00:00:19]} 29. h4 {[%clk 00:06:45]} {[%emt 00:01:19]} f6 {[%clk
00:17:08]} {[%emt 00:00:16]} 30. hxg5 {[%clk 00:06:25]} {[%emt 00:00:31]} fxg5
{[%clk 00:17:13]} {[%emt 00:00:05]} 31. f4 {[%clk 00:06:20]} {[%emt 00:00:15]}
c4 {[%clk 00:16:43]} {[%emt 00:00:40]} 32. fxg5 {[%clk 00:05:39]} {[%emt
00:00:52]} c3 {[%clk 00:16:37]} {[%emt 00:00:15]} 33. Rh4 {[%clk 00:05:06]}
{[%emt 00:00:39]} c2 {[%clk 00:16:42]} {[%emt 00:00:10]} 34. Bf4 {[%clk
00:02:44]} {[%emt 00:02:32]} Be5 {[%clk 00:16:46]} {[%emt 00:00:06]} 35. Bxe5
{[%clk 00:02:09]} {[%emt 00:00:45]} c1=Q {[%clk 00:16:52]} {[%emt 00:00:03]} 36.
Rh8+ {[%clk 00:01:10]} {[%emt 00:01:06]} Kf7 {[%clk 00:16:55]} {[%emt
00:00:10]} 37. Rh7+ {[%clk 00:00:19]} {[%emt 00:01:02]} Ke6 {[%clk 00:17:02]}
{[%emt 00:00:03]} 38. Bf6 {[%clk 00:00:24]} {[%emt 00:00:05]} Qf4+ {[%clk
00:16:51]} {[%emt 00:00:20]} 39. Kg1 {[%clk 00:00:24]} {[%emt 00:00:09]} Qd4+
{[%clk 00:16:53]} {[%emt 00:00:09]} 40. Bxd4 {[%clk 00:00:31]} {[%emt
00:00:04]} Rxg5 {[%clk 00:17:01]} {[%emt 00:00:02]} 41. Rxa7 {[%clk 00:00:35]}
{[%emt 00:00:07]} Kd5 {[%clk 00:17:04]} {[%emt 00:00:05]} 42. Bf2 {[%clk
00:00:37]} {[%emt 00:00:10]} Rg6 {[%clk 00:17:02]} {[%emt 00:00:09]} 43. Rb7
{[%clk 00:00:45]} {[%emt 00:00:05]} Kc6 {[%clk 00:17:10]} {[%emt 00:00:02]} 44.
Rb1 {[%clk 00:00:53]} {[%emt 00:00:01]} Kc7 {[%clk 00:17:10]} {[%emt 00:00:10]}
45. a4 {[%clk 00:00:59]} {[%emt 00:00:04]} Ra6 {[%clk 00:17:15]} {[%emt
00:00:04]} 46. Ra1 {[%clk 00:01:05]} {[%emt 00:00:05]} Kd7 {[%clk 00:17:18]}
{[%emt 00:00:06]} 47. a5 {[%clk 00:01:08]} {[%emt 00:00:07]} Ke7 {[%clk
00:17:25]} {[%emt 00:00:02]} 48. Kf1 {[%clk 00:01:14]} {[%emt 00:00:06]} Kf7
{[%clk 00:17:33]} {[%emt 00:00:02]} 49. g3 {[%clk 00:01:15]} {[%emt 00:00:09]}
Kg6 {[%clk 00:17:34]} {[%emt 00:00:06]} 50. Be3 {[%clk 00:01:23]} {[%emt
00:00:04]} Kf5 {[%clk 00:17:42]} {[%emt 00:00:03]} 51. Bf4 {[%clk 00:01:28]}
{[%emt 00:00:04]} Kg4 {[%clk 00:17:49]} {[%emt 00:00:03]} 52. Ke2 {[%clk
00:01:34]} {[%emt 00:00:05]} Kf5 {[%clk 00:17:57]} {[%emt 00:00:02]} 53. Kd3
{[%clk 00:01:36]} {[%emt 00:00:07]} Ke6 {[%clk 00:18:04]} {[%emt 00:00:04]} 54.
Kd4 {[%clk 00:01:44]} {[%emt 00:00:02]} Kd7 {[%clk 00:18:11]} {[%emt 00:00:03]}
55. Kc5 {[%clk 00:01:35]} {[%emt 00:00:18]} Kc8 {[%clk 00:18:14]} {[%emt
00:00:07]} 56. Kb5 {[%clk 00:01:43]} {[%emt 00:00:02]} Kb7 {[%clk 00:18:22]}
{[%emt 00:00:02]} 57. Be5 {[%clk 00:01:29]} {[%emt 00:00:21]} Re6 {[%clk
00:17:42]} {[%emt 00:00:54]} 58. a6+ {[%clk 00:01:27]} {[%emt 00:00:13]} Ka8
{[%clk 00:17:49]} {[%emt 00:00:02]} 59. Bf4 {[%clk 00:01:24]} {[%emt 00:00:13]}
Re2 {[%clk 00:17:30]} {[%emt 00:00:27]} 60. a7 {[%clk 00:00:31]} {[%emt
00:01:06]} Rb2+ {[%clk 00:17:27]} {[%emt 00:00:13]} 61. Kc5 {[%clk 00:00:24]}
{[%emt 00:00:15]} Rc2+ {[%clk 00:17:33]} {[%emt 00:00:06]} 62. Kd5 {[%clk
00:00:30]} {[%emt 00:00:04]} Rb2 {[%clk 00:17:31]} {[%emt 00:00:10]} 63. Bb8
{[%clk 00:00:23]} {[%emt 00:00:18]} Rg2 {[%clk 00:17:27]} {[%emt 00:00:13]} 64.
Ke4 {[%clk 00:00:29]} {[%emt 00:00:05]} Rb2 {[%clk 00:17:13]} {[%emt 00:00:24]}
65. g4 {[%clk 00:00:32]} {[%emt 00:00:07]} Rb4+ {[%clk 00:17:20]} {[%emt
00:00:03]} 66. Kf5 {[%clk 00:00:40]} {[%emt 00:00:02]} Rb5+ {[%clk 00:17:25]}
{[%emt 00:00:04]} 67. Kf6 {[%clk 00:00:39]} {[%emt 00:00:12]} Rb6+ {[%clk
00:17:33]} {[%emt 00:00:03]} 68. Kg5 {[%clk 00:00:44]} {[%emt 00:00:04]} Rb2
{[%clk 00:17:29]} {[%emt 00:00:14]} 69. Kg6 {[%clk 00:00:43]} {[%emt 00:00:11]}
Rg2 {[%clk 00:17:31]} {[%emt 00:00:07]} 70. g5 {[%clk 00:00:52]} {[%emt
00:00:03]} Rg4 {[%clk 00:17:37]} {[%emt 00:00:04]} 71. Kf5 {[%clk 00:00:58]}
{[%emt 00:00:04]} Rg2 {[%clk 00:17:44]} {[%emt 00:00:02]} 72. g6 {[%clk
00:01:06]} {[%emt 00:00:02]} Rf2+ {[%clk 00:17:52]} {[%emt 00:00:02]} 73. Kg5
{[%clk 00:01:15]} {[%emt 00:00:01]} Rg2+ {[%clk 00:18:00]} {[%emt 00:00:02]} 74.
Kh6 {[%clk 00:01:24]} {[%emt 00:00:01]} Rd2 {[%clk 00:17:53]} {[%emt 00:00:14]}
75. g7 {[%clk 00:01:32]} {[%emt 00:00:05]} Rb2 {[%clk 00:17:18]} {[%emt
00:00:44]} 76. g8=Q {[%clk 00:01:08]} {[%emt 00:00:35]} Rb1 {[%clk 00:17:25]}
{[%emt 00:00:03]} 77. Be5+ {[%clk 00:01:02]} {[%emt 00:00:14]} Rb8 {[%clk
00:17:31]} {[%emt 00:00:05]} 78. Qxb8# {[%clk 00:01:10]} {[%emt 00:00:02]} 1-0



[ePGN "0.1;DGT LiveChess/2.2.6"]